[Event "Titled Tuesday Blitz July 4 Late 2023"]
[White "Romero Ruscalleda, Josep"]
[Black "Jovic, Stanoje"]
[WhiteFideId "2231859"]
[BlackFideId "905020"]
[WhiteElo "2440"]
[BlackElo "2572"]
[Result "1-0"]
[Round "8"]
[TimeControl "180+2"]
[Date "2023.07.04"]
[WhiteClock "0:00:02"]
[BlackClock "0:00:00"]
[Board "60"]

1. e4 {[%clk 0:03:00]}  c6 {[%clk 0:02:59]} 2. Nc3 {[%clk 0:03:00]}  d5 {[%clk 0:02:59]} 3. Nf3 {[%clk 0:03:01]}  Nf6 {[%clk 0:02:59]} 4. exd5 {[%clk 0:02:54]}  cxd5 {[%clk 0:02:59]} 5. d4 {[%clk 0:02:54]}  Nc6 {[%clk 0:02:58]} 6. Ne2 {[%clk 0:02:54]}  Bg4 {[%clk 0:02:55]} 7. c3 {[%clk 0:02:46]}  Bxf3 {[%clk 0:02:53]} 8. gxf3 {[%clk 0:02:46]}  e6 {[%clk 0:02:50]} 9. Bh3 {[%clk 0:02:43]}  Bd6 {[%clk 0:02:49]} 10. Qd3 {[%clk 0:02:37]}  O-O {[%clk 0:02:46]} 11. Bg5 {[%clk 0:02:36]}  h6 {[%clk 0:02:35]} 12. Bh4 {[%clk 0:02:35]}  Be7 {[%clk 0:02:31]} 13. Rg1 {[%clk 0:02:32]}  Qc7 {[%clk 0:02:23]} 14. Bg3 {[%clk 0:02:26]}  Qa5 {[%clk 0:02:20]} 15. Kf1 {[%clk 0:02:09]}  Qa6 {[%clk 0:02:09]} 16. Qd2 {[%clk 0:02:07]}  Rfe8 {[%clk 0:01:53]} 17. Kg2 {[%clk 0:01:55]}  Na5 {[%clk 0:01:50]} 18. Kh1 {[%clk 0:01:47]}  Rac8 {[%clk 0:01:41]} 19. Be5 {[%clk 0:01:41]}  Kf8 {[%clk 0:01:22]} 20. b3 {[%clk 0:01:32]}  Nc6 {[%clk 0:01:11]} 21. Bf4 {[%clk 0:01:28]}  Ng8 {[%clk 0:01:09]} 22. Rg2 {[%clk 0:01:21]}  b5 {[%clk 0:01:07]} 23. Rag1 {[%clk 0:01:19]}  g5 {[%clk 0:01:07]} 24. Be3 {[%clk 0:01:13]}  b4 {[%clk 0:01:05]} 25. f4 {[%clk 0:01:10]}  bxc3 {[%clk 0:01:03]} 26. Nxc3 {[%clk 0:01:08]}  Bb4 {[%clk 0:00:54]} 27. fxg5 {[%clk 0:01:00]}  h5 {[%clk 0:00:53]} 28. g6 {[%clk 0:00:56]}  f5 {[%clk 0:00:46]} 29. Bh6+ {[%clk 0:00:55]}  Ke7 {[%clk 0:00:46]} 30. Qg5+ {[%clk 0:00:51]}  Kd6 {[%clk 0:00:40]} 31. Na4 {[%clk 0:00:45]}  Nxd4 {[%clk 0:00:37]} 32. Qxh5 {[%clk 0:00:36]}  Nf6 {[%clk 0:00:36]} 33. Qh4 {[%clk 0:00:31]}  Ne4 {[%clk 0:00:32]} 34. g7 {[%clk 0:00:25]}  Nf3 {[%clk 0:00:27]} 35. Qf4+ {[%clk 0:00:23]}  Ne5 {[%clk 0:00:26]} 36. g8=Q {[%clk 0:00:20]}  Rxg8 {[%clk 0:00:26]} 37. Rxg8 {[%clk 0:00:20]}  Bd2 {[%clk 0:00:20]} 38. Qxd2 {[%clk 0:00:12]}  Nxd2 {[%clk 0:00:18]} 39. Bxd2 {[%clk 0:00:12]}  Rxg8 {[%clk 0:00:15]} 40. Rxg8 {[%clk 0:00:11]}  Nd3 {[%clk 0:00:14]} 41. Bf1 {[%clk 0:00:10]}  Qc6 {[%clk 0:00:08]} 42. Bxd3 {[%clk 0:00:08]}  d4+ {[%clk 0:00:08]} 43. Rg2 {[%clk 0:00:06]}  Qf3 {[%clk 0:00:05]} 44. Bf1 {[%clk 0:00:05]}  Qd1 {[%clk 0:00:05]} 45. Kg1 {[%clk 0:00:05]}  Qxd2 {[%clk 0:00:05]} 46. h4 {[%clk 0:00:05]}  Qxa2 {[%clk 0:00:05]} 47. Bc4 {[%clk 0:00:03]}  Qa1+ {[%clk 0:00:04]} 48. Kh2 {[%clk 0:00:04]}  d3 {[%clk 0:00:04]} 49. Rg6 {[%clk 0:00:03]}  d2 {[%clk 0:00:03]} 50. Rxe6+ {[%clk 0:00:04]}  Kd7 {[%clk 0:00:03]} 51. Nc5+ {[%clk 0:00:03]}  Kc7 {[%clk 0:00:02]} 52. Re7+ {[%clk 0:00:02]}  Kd6 {[%clk 0:00:01]} 53. Rd7+ {[%clk 0:00:02]}  Kxc5 {[%clk 0:00:02]} 54. Rxd2 {[%clk 0:00:03]}  Qe5+ {[%clk 0:00:01]} 55. Kg2 {[%clk 0:00:02]}  Qe4+ {[%clk 0:00:00]} 56. Kf1 {[%clk 0:00:02]} 1-0


[Site "https://www.chess.com"]

[Event "Titled Tuesday Blitz July 4 Late 2023"]
[White "Bruedigam, Martin"]
[Black "Gombocz, Ferenc Jr."]
[WhiteFideId "24608033"]
[BlackFideId "775029"]
[WhiteElo "2556"]
[BlackElo "2413"]
[Result "1-0"]
[Round "8"]
[TimeControl "180+2"]
[Date "2023.07.04"]
[WhiteClock "0:01:12"]
[BlackClock "0:00:10"]
[Board "62"]

1. c4 {[%clk 0:03:00]}  c5 {[%clk 0:02:57]} 2. g3 {[%clk 0:03:01]}  g6 {[%clk 0:02:56]} 3. Bg2 {[%clk 0:03:01]}  Bg7 {[%clk 0:02:57]} 4. Nc3 {[%clk 0:03:00]}  Nc6 {[%clk 0:02:57]} 5. Bxc6 {[%clk 0:02:59]}  bxc6 {[%clk 0:02:55]} 6. f4 {[%clk 0:02:56]}  e6 {[%clk 0:02:50]} 7. Nf3 {[%clk 0:02:56]}  Ne7 {[%clk 0:02:50]} 8. b3 {[%clk 0:02:54]}  O-O {[%clk 0:02:49]} 9. Bb2 {[%clk 0:02:55]}  d5 {[%clk 0:02:48]} 10. Na4 {[%clk 0:02:53]}  Bxb2 {[%clk 0:02:27]} 11. Nxb2 {[%clk 0:02:54]}  f6 {[%clk 0:02:27]} 12. Qc2 {[%clk 0:02:48]}  d4 {[%clk 0:02:23]} 13. Nd3 {[%clk 0:02:42]}  Qd6 {[%clk 0:02:23]} 14. Qb2 {[%clk 0:02:42]}  Nf5 {[%clk 0:02:06]} 15. Qa3 {[%clk 0:02:41]}  e5 {[%clk 0:02:04]} 16. fxe5 {[%clk 0:02:35]}  fxe5 {[%clk 0:02:04]} 17. Nfxe5 {[%clk 0:02:36]}  Re8 {[%clk 0:02:01]} 18. Nf3 {[%clk 0:02:30]}  Qe7 {[%clk 0:01:35]} 19. O-O-O {[%clk 0:02:26]}  Bd7 {[%clk 0:01:10]} 20. Rde1 {[%clk 0:02:23]}  a5 {[%clk 0:00:59]} 21. Qxc5 {[%clk 0:02:23]}  Qg7 {[%clk 0:00:51]} 22. g4 {[%clk 0:02:14]}  Ne7 {[%clk 0:00:41]} 23. h3 {[%clk 0:02:13]}  a4 {[%clk 0:00:36]} 24. Qxd4 {[%clk 0:02:02]}  Qf8 {[%clk 0:00:35]} 25. b4 {[%clk 0:01:58]}  Red8 {[%clk 0:00:24]} 26. Qc3 {[%clk 0:01:55]}  Be6 {[%clk 0:00:21]} 27. a3 {[%clk 0:01:54]}  Rac8 {[%clk 0:00:17]} 28. Rhf1 {[%clk 0:01:52]}  Qe8 {[%clk 0:00:14]} 29. Nf4 {[%clk 0:01:48]}  Nd5 {[%clk 0:00:13]} 30. Qe5 {[%clk 0:01:39]}  Nxf4 {[%clk 0:00:13]} 31. Qxf4 {[%clk 0:01:37]}  c5 {[%clk 0:00:14]} 32. b5 {[%clk 0:01:35]}  Qe7 {[%clk 0:00:14]} 33. d3 {[%clk 0:01:31]}  Qg7 {[%clk 0:00:13]} 34. Qe5 {[%clk 0:01:31]}  Qd7 {[%clk 0:00:13]} 35. Kb2 {[%clk 0:01:28]}  Re8 {[%clk 0:00:14]} 36. Qc3 {[%clk 0:01:27]}  Rb8 {[%clk 0:00:14]} 37. Nd2 {[%clk 0:01:13]}  Qc7 {[%clk 0:00:13]} 38. Ne4 {[%clk 0:01:12]}  Rb6 {[%clk 0:00:10]} 39. Nf6+ {[%clk 0:01:12]} 1-0


[Site "https://www.chess.com"]

[Event "Titled Tuesday Blitz July 4 Late 2023"]
[White "Omariev, Maksim"]
[Black "ArtemDyachuk"]
[WhiteFideId "4193423"]
[WhiteElo "2439"]
[BlackElo "2555"]
[Result "0-1"]
[Round "8"]
[TimeControl "180+2"]
[Date "2023.07.04"]
[WhiteClock "0:00:00"]
[BlackClock "0:01:52"]
[Board "63"]

1. g4 {[%clk 0:02:30]}  g6 {[%clk 0:02:58]} 2. Bg2 {[%clk 0:02:30]}  Bg7 {[%clk 0:02:52]} 3. d4 {[%clk 0:02:30]}  c6 {[%clk 0:02:49]} 4. h4 {[%clk 0:02:29]}  d5 {[%clk 0:02:46]} 5. g5 {[%clk 0:02:29]}  Nd7 {[%clk 0:02:37]} 6. Nf3 {[%clk 0:02:05]}  Nf8 {[%clk 0:02:36]} 7. c3 {[%clk 0:01:59]}  Bg4 {[%clk 0:02:36]} 8. Bf4 {[%clk 0:01:58]}  Ne6 {[%clk 0:02:35]} 9. Bg3 {[%clk 0:01:57]}  f6 {[%clk 0:02:34]} 10. Qd2 {[%clk 0:01:50]}  Qd7 {[%clk 0:02:33]} 11. Na3 {[%clk 0:01:47]}  O-O-O {[%clk 0:02:30]} 12. Nc2 {[%clk 0:01:44]}  h6 {[%clk 0:02:25]} 13. Nh2 {[%clk 0:01:04]}  Bf5 {[%clk 0:02:24]} 14. gxf6 {[%clk 0:00:50]}  Nxf6 {[%clk 0:02:20]} 15. Ne3 {[%clk 0:00:44]}  Ne4 {[%clk 0:02:15]} 16. Bxe4 {[%clk 0:00:43]}  Bxe4 {[%clk 0:02:16]} 17. f3 {[%clk 0:00:43]}  Bf5 {[%clk 0:02:15]} 18. Nxf5 {[%clk 0:00:43]}  gxf5 {[%clk 0:02:16]} 19. O-O-O {[%clk 0:00:32]}  c5 {[%clk 0:02:10]} 20. Be5 {[%clk 0:00:25]}  Bxe5 {[%clk 0:02:08]} 21. dxe5 {[%clk 0:00:26]}  Qa4 {[%clk 0:02:08]} 22. Kb1 {[%clk 0:00:24]}  d4 {[%clk 0:02:05]} 23. Qc2 {[%clk 0:00:10]}  Qc6 {[%clk 0:02:04]} 24. c4 {[%clk 0:00:02]}  Rhf8 {[%clk 0:02:05]} 25. Nf1 {[%clk 0:00:02]}  Nc7 {[%clk 0:02:06]} 26. Ng3 {[%clk 0:00:02]}  e6 {[%clk 0:02:07]} 27. f4 {[%clk 0:00:02]}  Qg2 {[%clk 0:02:06]} 28. Nh5 {[%clk 0:00:03]}  Na6 {[%clk 0:01:59]} 29. Rdg1 {[%clk 0:00:03]}  Qc6 {[%clk 0:01:57]} 30. Nf6 {[%clk 0:00:03]}  Nb4 {[%clk 0:01:51]} 31. Qd2 {[%clk 0:00:03]}  Rxf6 {[%clk 0:01:50]} 32. exf6 {[%clk 0:00:03]}  Qe4+ {[%clk 0:01:51]} 33. Kc1 {[%clk 0:00:03]}  Nxa2+ {[%clk 0:01:51]} 34. Kd1 {[%clk 0:00:00]}  Qb1+ {[%clk 0:01:52]} 0-1


[Site "https://www.chess.com"]

[Event "Titled Tuesday Blitz July 4 Late 2023"]
[White "Kanyamarala, Tarun"]
[Black "Mindhunter08"]
[WhiteFideId "45004714"]
[WhiteElo "2553"]
[BlackElo "2413"]
[Result "0-1"]
[Round "8"]
[TimeControl "180+2"]
[Date "2023.07.04"]
[WhiteClock "0:01:03"]
[BlackClock "0:01:22"]
[Board "64"]

1. d4 {[%clk 0:03:00]}  d5 {[%clk 0:02:57]} 2. c4 {[%clk 0:03:00]}  c6 {[%clk 0:02:56]} 3. Nf3 {[%clk 0:02:57]}  Nf6 {[%clk 0:02:57]} 4. Qc2 {[%clk 0:02:56]}  dxc4 {[%clk 0:02:52]} 5. Qxc4 {[%clk 0:02:55]}  b5 {[%clk 0:02:52]} 6. Qc2 {[%clk 0:02:46]}  Bb7 {[%clk 0:02:52]} 7. Bg5 {[%clk 0:02:45]}  e6 {[%clk 0:02:45]} 8. e4 {[%clk 0:02:44]}  Be7 {[%clk 0:02:45]} 9. Nbd2 {[%clk 0:02:44]}  Nbd7 {[%clk 0:02:43]} 10. Bd3 {[%clk 0:02:42]}  h6 {[%clk 0:02:43]} 11. Bh4 {[%clk 0:02:42]}  a6 {[%clk 0:02:41]} 12. e5 {[%clk 0:02:40]}  Nd5 {[%clk 0:02:41]} 13. Bxe7 {[%clk 0:02:39]}  Qxe7 {[%clk 0:02:42]} 14. Ne4 {[%clk 0:02:39]}  O-O {[%clk 0:02:26]} 15. Nd6 {[%clk 0:02:36]}  Rab8 {[%clk 0:02:19]} 16. a3 {[%clk 0:02:30]}  Ba8 {[%clk 0:01:45]} 17. b4 {[%clk 0:02:24]}  f6 {[%clk 0:01:41]} 18. O-O {[%clk 0:02:14]}  fxe5 {[%clk 0:01:38]} 19. dxe5 {[%clk 0:01:43]}  Rxf3 {[%clk 0:01:37]} 20. gxf3 {[%clk 0:01:41]}  Nxe5 {[%clk 0:01:38]} 21. Qc5 {[%clk 0:01:14]}  Nxd3 {[%clk 0:01:29]} 22. Qd4 {[%clk 0:01:14]}  N3f4 {[%clk 0:01:22]} 23. Ne4 {[%clk 0:01:03]}  Ne2+ {[%clk 0:01:22]} 0-1


[Site "https://www.chess.com"]

[Event "Titled Tuesday Blitz July 4 Late 2023"]
[White "ElenGajger"]
[Black "AdvanceGuard4"]
[WhiteElo "2389"]
[BlackElo "2543"]
[Result "0-1"]
[Round "8"]
[TimeControl "180+2"]
[Date "2023.07.04"]
[WhiteClock "0:00:09"]
[BlackClock "0:00:19"]
[Board "65"]

1. e4 {[%clk 0:03:00]}  c6 {[%clk 0:02:55]} 2. b3 {[%clk 0:02:52]}  d5 {[%clk 0:02:56]} 3. Bb2 {[%clk 0:02:53]}  dxe4 {[%clk 0:02:56]} 4. Nc3 {[%clk 0:02:53]}  Nf6 {[%clk 0:02:56]} 5. Qe2 {[%clk 0:02:52]}  Nbd7 {[%clk 0:02:55]} 6. Nxe4 {[%clk 0:02:50]}  Nxe4 {[%clk 0:02:56]} 7. Qxe4 {[%clk 0:02:51]}  Nf6 {[%clk 0:02:56]} 8. Qh4 {[%clk 0:02:46]}  a5 {[%clk 0:02:53]} 9. Nf3 {[%clk 0:02:39]}  Bf5 {[%clk 0:02:52]} 10. d3 {[%clk 0:02:33]}  a4 {[%clk 0:02:50]} 11. bxa4 {[%clk 0:02:31]}  Qa5+ {[%clk 0:02:48]} 12. Nd2 {[%clk 0:02:27]}  e6 {[%clk 0:02:33]} 13. a3 {[%clk 0:02:19]}  Be7 {[%clk 0:02:19]} 14. Qc4 {[%clk 0:02:03]}  Nd5 {[%clk 0:02:12]} 15. h4 {[%clk 0:01:41]}  Nb6 {[%clk 0:02:08]} 16. Qb3 {[%clk 0:01:39]}  Nxa4 {[%clk 0:01:54]} 17. Bxg7 {[%clk 0:01:22]}  Rg8 {[%clk 0:01:50]} 18. Bd4 {[%clk 0:01:22]}  b5 {[%clk 0:01:27]} 19. Be3 {[%clk 0:01:11]}  e5 {[%clk 0:01:22]} 20. d4 {[%clk 0:00:47]}  exd4 {[%clk 0:01:06]} 21. Bxd4 {[%clk 0:00:47]}  O-O-O {[%clk 0:01:06]} 22. c3 {[%clk 0:00:44]}  Be6 {[%clk 0:00:56]} 23. Qc2 {[%clk 0:00:38]}  c5 {[%clk 0:00:44]} 24. Be3 {[%clk 0:00:35]}  Nxc3 {[%clk 0:00:41]} 25. Rc1 {[%clk 0:00:28]}  b4 {[%clk 0:00:37]} 26. axb4 {[%clk 0:00:26]}  cxb4 {[%clk 0:00:38]} 27. Bc4 {[%clk 0:00:23]}  Qe5 {[%clk 0:00:28]} 28. Bxe6+ {[%clk 0:00:21]}  Qxe6 {[%clk 0:00:29]} 29. O-O {[%clk 0:00:20]}  Rxg2+ {[%clk 0:00:23]} 30. Kxg2 {[%clk 0:00:17]}  Qg4+ {[%clk 0:00:22]} 31. Kh2 {[%clk 0:00:11]}  Qxh4+ {[%clk 0:00:22]} 32. Kg2 {[%clk 0:00:11]}  Rg8+ {[%clk 0:00:19]} 33. Kf3 {[%clk 0:00:09]}  Qg4# {[%clk 0:00:19]} 0-1


[Site "https://www.chess.com"]

[Event "Titled Tuesday Blitz July 4 Late 2023"]
[White "Goltsev, Dmitry"]
[Black "Ambartsumova, Karina"]
[WhiteFideId "24176710"]
[BlackFideId "4166299"]
[WhiteElo "2803"]
[BlackElo "2540"]
[Result "0-1"]
[Round "8"]
[TimeControl "180+2"]
[Date "2023.07.04"]
[WhiteClock "0:01:23"]
[BlackClock "0:00:10"]
[Board "68"]

1. e4 {[%clk 0:03:00]}  e5 {[%clk 0:02:56]} 2. Nf3 {[%clk 0:03:01]}  Nc6 {[%clk 0:02:56]} 3. Bb5 {[%clk 0:03:01]}  Nf6 {[%clk 0:02:54]} 4. O-O {[%clk 0:03:02]}  Nxe4 {[%clk 0:02:54]} 5. d4 {[%clk 0:03:02]}  Nd6 {[%clk 0:02:54]} 6. Bxc6 {[%clk 0:03:02]}  dxc6 {[%clk 0:02:55]} 7. dxe5 {[%clk 0:03:03]}  Nf5 {[%clk 0:02:55]} 8. Qxd8+ {[%clk 0:03:04]}  Kxd8 {[%clk 0:02:56]} 9. Rd1+ {[%clk 0:03:05]}  Ke8 {[%clk 0:02:55]} 10. Bg5 {[%clk 0:03:06]}  Be6 {[%clk 0:02:49]} 11. Nc3 {[%clk 0:03:06]}  h6 {[%clk 0:02:47]} 12. Bf4 {[%clk 0:03:06]}  Be7 {[%clk 0:02:47]} 13. b3 {[%clk 0:03:05]}  Rd8 {[%clk 0:02:40]} 14. h3 {[%clk 0:03:05]}  Bb4 {[%clk 0:02:23]} 15. Ne4 {[%clk 0:03:00]}  Bd5 {[%clk 0:02:14]} 16. Nfd2 {[%clk 0:02:59]}  Nd4 {[%clk 0:02:07]} 17. c3 {[%clk 0:02:55]}  Ne2+ {[%clk 0:02:03]} 18. Kf1 {[%clk 0:02:55]}  Nxc3 {[%clk 0:02:00]} 19. Nxc3 {[%clk 0:02:55]}  Bxc3 {[%clk 0:02:01]} 20. Rac1 {[%clk 0:02:56]}  Bb4 {[%clk 0:01:59]} 21. Nc4 {[%clk 0:02:55]}  Be6 {[%clk 0:01:49]} 22. Ke2 {[%clk 0:02:53]}  Rxd1 {[%clk 0:01:47]} 23. Rxd1 {[%clk 0:02:54]}  Ke7 {[%clk 0:01:37]} 24. Be3 {[%clk 0:02:53]}  Rd8 {[%clk 0:01:20]} 25. Rc1 {[%clk 0:02:50]}  a6 {[%clk 0:01:04]} 26. g4 {[%clk 0:02:49]}  b5 {[%clk 0:00:52]} 27. Nd2 {[%clk 0:02:46]}  Bd5 {[%clk 0:00:20]} 28. f4 {[%clk 0:02:46]}  f6 {[%clk 0:00:17]} 29. Nf3 {[%clk 0:02:27]}  Ba5 {[%clk 0:00:12]} 30. Nd4 {[%clk 0:02:14]}  fxe5 {[%clk 0:00:12]} 31. fxe5 {[%clk 0:02:11]}  Kd7 {[%clk 0:00:11]} 32. e6+ {[%clk 0:02:10]}  Ke7 {[%clk 0:00:06]} 33. Rxc6 {[%clk 0:02:06]}  Bxc6 {[%clk 0:00:07]} 34. Nxc6+ {[%clk 0:02:06]}  Ke8 {[%clk 0:00:07]} 35. Nxa5 {[%clk 0:02:07]}  Rd6 {[%clk 0:00:06]} 36. Nb7 {[%clk 0:02:03]}  Rxe6 {[%clk 0:00:06]} 37. Nc5 {[%clk 0:02:03]}  Rf6 {[%clk 0:00:06]} 38. Bd4 {[%clk 0:02:03]}  Rg6 {[%clk 0:00:06]} 39. Ke3 {[%clk 0:02:02]}  Ke7 {[%clk 0:00:07]} 40. Ke4 {[%clk 0:02:01]}  a5 {[%clk 0:00:07]} 41. Nd3 {[%clk 0:02:00]}  a4 {[%clk 0:00:06]} 42. Ne5 {[%clk 0:02:00]}  Ra6 {[%clk 0:00:06]} 43. b4 {[%clk 0:01:59]}  a3 {[%clk 0:00:06]} 44. Kd5 {[%clk 0:02:00]}  Rd6+ {[%clk 0:00:06]} 45. Ke4 {[%clk 0:02:00]}  Ra6 {[%clk 0:00:06]} 46. h4 {[%clk 0:01:58]}  Ke6 {[%clk 0:00:06]} 47. Nd3 {[%clk 0:01:58]}  Rc6 {[%clk 0:00:06]} 48. Bxg7 {[%clk 0:01:57]}  Rc4+ {[%clk 0:00:06]} 49. Kf3 {[%clk 0:01:58]}  Rc2 {[%clk 0:00:05]} 50. Nc5+ {[%clk 0:01:49]}  Kf7 {[%clk 0:00:05]} 51. Bd4 {[%clk 0:01:39]}  Rxa2 {[%clk 0:00:06]} 52. Na6 {[%clk 0:01:34]}  Rc2 {[%clk 0:00:05]} 53. Nc5 {[%clk 0:01:29]}  a2 {[%clk 0:00:06]} 54. Nb3 {[%clk 0:01:29]}  Rc4 {[%clk 0:00:06]} 55. Ke4 {[%clk 0:01:24]}  Rxb4 {[%clk 0:00:07]} 56. Na1 {[%clk 0:01:23]}  c5 {[%clk 0:00:07]} 57. g5 {[%clk 0:01:23]}  Rxd4+ {[%clk 0:00:07]} 58. Kf5 {[%clk 0:01:24]}  hxg5 {[%clk 0:00:08]} 59. hxg5 {[%clk 0:01:24]}  Rd5+ {[%clk 0:00:09]} 60. Kf4 {[%clk 0:01:25]}  Rd1 {[%clk 0:00:10]} 61. Nb3 {[%clk 0:01:23]}  a1=Q {[%clk 0:00:10]} 0-1


[Site "https://www.chess.com"]

[Event "Titled Tuesday Blitz July 4 Late 2023"]
[White "a-z30"]
[Black "Czerw, Dawid"]
[BlackFideId "1145746"]
[WhiteElo "2483"]
[BlackElo "2561"]
[Result "0-1"]
[Round "8"]
[TimeControl "180+2"]
[Date "2023.07.04"]
[WhiteClock "0:00:05"]
[BlackClock "0:00:07"]
[Board "72"]

1. d3 {[%clk 0:03:00]}  Nf6 {[%clk 0:02:59]} 2. Nf3 {[%clk 0:03:01]}  g6 {[%clk 0:02:59]} 3. g3 {[%clk 0:03:02]}  Bg7 {[%clk 0:03:00]} 4. Bg2 {[%clk 0:03:03]}  d5 {[%clk 0:03:00]} 5. O-O {[%clk 0:03:03]}  O-O {[%clk 0:03:00]} 6. c4 {[%clk 0:03:03]}  Nc6 {[%clk 0:03:00]} 7. cxd5 {[%clk 0:02:28]}  Nxd5 {[%clk 0:03:00]} 8. a3 {[%clk 0:02:27]}  a5 {[%clk 0:02:58]} 9. Qc2 {[%clk 0:02:23]}  e5 {[%clk 0:02:56]} 10. Nc3 {[%clk 0:02:18]}  h6 {[%clk 0:02:49]} 11. Nxd5 {[%clk 0:02:11]}  Qxd5 {[%clk 0:02:48]} 12. Be3 {[%clk 0:02:11]}  Be6 {[%clk 0:02:24]} 13. Ng5 {[%clk 0:01:53]}  Qb3 {[%clk 0:02:20]} 14. Qxb3 {[%clk 0:01:47]}  Bxb3 {[%clk 0:02:21]} 15. Ne4 {[%clk 0:01:45]}  Bd5 {[%clk 0:02:05]} 16. Nf6+ {[%clk 0:01:44]}  Bxf6 {[%clk 0:02:05]} 17. Bxd5 {[%clk 0:01:45]}  Kg7 {[%clk 0:02:02]} 18. Rac1 {[%clk 0:01:39]}  Ra6 {[%clk 0:01:58]} 19. Rc4 {[%clk 0:01:28]}  Rb8 {[%clk 0:01:46]} 20. Rfc1 {[%clk 0:01:19]}  Ne7 {[%clk 0:01:45]} 21. Bf3 {[%clk 0:01:11]}  c6 {[%clk 0:01:43]} 22. g4 {[%clk 0:00:51]}  Nc8 {[%clk 0:01:21]} 23. b4 {[%clk 0:00:45]}  Nd6 {[%clk 0:01:17]} 24. Rc5 {[%clk 0:00:35]}  a4 {[%clk 0:01:11]} 25. R5c2 {[%clk 0:00:28]}  Nb5 {[%clk 0:01:09]} 26. Ra2 {[%clk 0:00:27]}  Raa8 {[%clk 0:01:01]} 27. Bc5 {[%clk 0:00:19]}  Rd8 {[%clk 0:00:57]} 28. Kg2 {[%clk 0:00:18]}  Rd7 {[%clk 0:00:54]} 29. Kg3 {[%clk 0:00:18]}  Re8 {[%clk 0:00:54]} 30. h4 {[%clk 0:00:17]}  Kh7 {[%clk 0:00:51]} 31. Be3 {[%clk 0:00:15]}  Bg7 {[%clk 0:00:50]} 32. g5 {[%clk 0:00:14]}  h5 {[%clk 0:00:46]} 33. Rxc6 {[%clk 0:00:12]}  e4 {[%clk 0:00:36]} 34. Bxe4 {[%clk 0:00:06]}  Rxe4 {[%clk 0:00:32]} 35. Rc5 {[%clk 0:00:02]}  Re5 {[%clk 0:00:30]} 36. Rxe5 {[%clk 0:00:02]}  Bxe5+ {[%clk 0:00:30]} 37. f4 {[%clk 0:00:03]}  Bd6 {[%clk 0:00:23]} 38. Kf3 {[%clk 0:00:03]}  Rc7 {[%clk 0:00:23]} 39. Bd2 {[%clk 0:00:01]}  Kg8 {[%clk 0:00:20]} 40. e3 {[%clk 0:00:01]}  Kf8 {[%clk 0:00:14]} 41. Ke4 {[%clk 0:00:02]}  Ke7 {[%clk 0:00:15]} 42. d4 {[%clk 0:00:02]}  Nc3+ {[%clk 0:00:13]} 43. Bxc3 {[%clk 0:00:01]}  Rxc3 {[%clk 0:00:14]} 44. Kf3 {[%clk 0:00:01]}  Ke6 {[%clk 0:00:14]} 45. Ke2 {[%clk 0:00:01]}  Kd5 {[%clk 0:00:13]} 46. Kf3 {[%clk 0:00:02]}  Kc4 {[%clk 0:00:13]} 47. Ke4 {[%clk 0:00:02]}  Bb8 {[%clk 0:00:09]} 48. Rf2 {[%clk 0:00:03]}  Rxa3 {[%clk 0:00:09]} 49. f5 {[%clk 0:00:03]}  gxf5+ {[%clk 0:00:09]} 50. Rxf5 {[%clk 0:00:04]}  Rb3 {[%clk 0:00:09]} 51. Rxf7 {[%clk 0:00:05]}  a3 {[%clk 0:00:09]} 52. g6 {[%clk 0:00:05]}  Rb1 {[%clk 0:00:08]} 53. g7 {[%clk 0:00:05]}  Rg1 {[%clk 0:00:08]} 54. Rf8 {[%clk 0:00:05]}  a2 {[%clk 0:00:08]} 55. g8=Q+ {[%clk 0:00:05]}  Rxg8 {[%clk 0:00:07]} 56. Rxg8 {[%clk 0:00:06]}  a1=Q {[%clk 0:00:07]} 57. Rxb8 {[%clk 0:00:07]}  Qh1+ {[%clk 0:00:06]} 58. Ke5 {[%clk 0:00:07]}  Qxh4 {[%clk 0:00:07]} 59. e4 {[%clk 0:00:06]}  Qe7+ {[%clk 0:00:06]} 60. Kf5 {[%clk 0:00:06]}  Qd7+ {[%clk 0:00:05]} 61. Kg6 {[%clk 0:00:05]}  Qd6+ {[%clk 0:00:05]} 62. Kxh5 {[%clk 0:00:05]}  Qxb8 {[%clk 0:00:06]} 63. Kg4 {[%clk 0:00:05]}  Kxd4 {[%clk 0:00:06]} 64. Kf3 {[%clk 0:00:06]}  Qe5 {[%clk 0:00:06]} 65. Ke2 {[%clk 0:00:05]}  Qxe4+ {[%clk 0:00:07]} 0-1


[Site "https://www.chess.com"]

[Event "Titled Tuesday Blitz July 4 Late 2023"]
[White "Yurovskykh, Oleksandr"]
[Black "Luong Phuong Hanh"]
[WhiteFideId "14134020"]
[BlackFideId "12401013"]
[WhiteElo "2560"]
[BlackElo "2475"]
[Result "1-0"]
[Round "8"]
[TimeControl "180+2"]
[Date "2023.07.04"]
[WhiteClock "0:00:26"]
[BlackClock "0:00:00"]
[Board "73"]

1. d4 {[%clk 0:03:00]}  Nf6 {[%clk 0:01:23]} 2. Nf3 {[%clk 0:02:57]}  g6 {[%clk 0:01:22]} 3. Bg5 {[%clk 0:02:57]}  Bg7 {[%clk 0:01:21]} 4. Nbd2 {[%clk 0:02:56]}  d5 {[%clk 0:01:21]} 5. e3 {[%clk 0:02:56]}  O-O {[%clk 0:01:20]} 6. Be2 {[%clk 0:02:57]}  c5 {[%clk 0:01:21]} 7. c3 {[%clk 0:02:57]}  Qb6 {[%clk 0:01:20]} 8. Qb3 {[%clk 0:02:57]}  c4 {[%clk 0:01:20]} 9. Qxb6 {[%clk 0:02:55]}  axb6 {[%clk 0:01:21]} 10. a3 {[%clk 0:02:56]}  b5 {[%clk 0:01:21]} 11. O-O-O {[%clk 0:02:54]}  Nc6 {[%clk 0:01:21]} 12. Rde1 {[%clk 0:02:54]}  Bf5 {[%clk 0:01:21]} 13. Bxf6 {[%clk 0:02:42]}  Bxf6 {[%clk 0:01:20]} 14. Nb1 {[%clk 0:02:40]}  Na5 {[%clk 0:01:07]} 15. Nfd2 {[%clk 0:02:37]}  Rfc8 {[%clk 0:01:04]} 16. Bd1 {[%clk 0:02:29]}  e5 {[%clk 0:00:38]} 17. dxe5 {[%clk 0:02:25]}  Bxe5 {[%clk 0:00:38]} 18. Bc2 {[%clk 0:02:26]}  Bxc2 {[%clk 0:00:36]} 19. Kxc2 {[%clk 0:02:27]}  Nc6 {[%clk 0:00:33]} 20. Nf3 {[%clk 0:02:26]}  Bg7 {[%clk 0:00:32]} 21. Nbd2 {[%clk 0:02:25]}  Na5 {[%clk 0:00:20]} 22. Nf1 {[%clk 0:02:24]}  Nb3 {[%clk 0:00:20]} 23. Ng3 {[%clk 0:02:22]}  Nc5 {[%clk 0:00:20]} 24. Rd1 {[%clk 0:02:15]}  Nd3 {[%clk 0:00:20]} 25. Rxd3 {[%clk 0:02:15]}  cxd3+ {[%clk 0:00:20]} 26. Kxd3 {[%clk 0:02:16]}  Rc4 {[%clk 0:00:20]} 27. Ne2 {[%clk 0:02:14]}  b4 {[%clk 0:00:19]} 28. axb4 {[%clk 0:02:14]}  Ra2 {[%clk 0:00:19]} 29. Kc2 {[%clk 0:02:11]}  Rc8 {[%clk 0:00:14]} 30. Rd1 {[%clk 0:02:11]}  Rd8 {[%clk 0:00:13]} 31. Nf4 {[%clk 0:02:10]}  Ra6 {[%clk 0:00:11]} 32. Nxd5 {[%clk 0:01:59]}  Kf8 {[%clk 0:00:12]} 33. b5 {[%clk 0:01:57]}  Rad6 {[%clk 0:00:11]} 34. c4 {[%clk 0:01:58]}  Rc8 {[%clk 0:00:10]} 35. b3 {[%clk 0:01:56]}  h6 {[%clk 0:00:11]} 36. e4 {[%clk 0:01:51]}  Ra8 {[%clk 0:00:11]} 37. Nd2 {[%clk 0:01:46]}  Ra2+ {[%clk 0:00:10]} 38. Kd3 {[%clk 0:01:46]}  f5 {[%clk 0:00:10]} 39. g3 {[%clk 0:01:41]}  Re6 {[%clk 0:00:10]} 40. Re1 {[%clk 0:01:28]}  Rb2 {[%clk 0:00:10]} 41. b4 {[%clk 0:01:15]}  fxe4+ {[%clk 0:00:10]} 42. Nxe4 {[%clk 0:01:15]}  Rxf2 {[%clk 0:00:08]} 43. Nf4 {[%clk 0:01:07]}  Re8 {[%clk 0:00:07]} 44. Nxg6+ {[%clk 0:01:03]}  Kf7 {[%clk 0:00:07]} 45. Nd6+ {[%clk 0:01:00]}  Kxg6 {[%clk 0:00:08]} 46. Rxe8 {[%clk 0:01:00]}  Rxh2 {[%clk 0:00:09]} 47. Nxb7 {[%clk 0:00:58]}  Rb2 {[%clk 0:00:08]} 48. Re3 {[%clk 0:00:33]}  Rxb4 {[%clk 0:00:07]} 49. Na5 {[%clk 0:00:32]}  Rb1 {[%clk 0:00:07]} 50. Ke4 {[%clk 0:00:30]}  Bf6 {[%clk 0:00:04]} 51. Nc6 {[%clk 0:00:30]}  Bg5 {[%clk 0:00:04]} 52. Rd3 {[%clk 0:00:29]}  Re1+ {[%clk 0:00:04]} 53. Kd5 {[%clk 0:00:29]}  Rb1 {[%clk 0:00:02]} 54. Nd4 {[%clk 0:00:28]}  Rc1 {[%clk 0:00:01]} 55. b6 {[%clk 0:00:27]}  Be7 {[%clk 0:00:00]} 56. b7 {[%clk 0:00:26]} 1-0


[Site "https://www.chess.com"]